[Event "Early-Titled-Tuesday-Blitz-February-27-2024"]
[Site "Chess.com"]
[Date "2024.02.27"]
[Round "11"]
[White "SashaKuzhilniy"]
[Black "IlanSchnaider"]
[Result "1-0"]
[WhiteElo "2629"]
[BlackElo "2721"]
[TimeControl "180+1"]
[EndTime "10:04:30 PST"]
[Termination "SashaKuzhilniy won by checkmate"]

1. c4 {[%clk 0:03:00.9]} 1... Nf6 {[%clk 0:02:48.4]} 2. g3 {[%clk 0:03:00.4]}
2... g6 {[%clk 0:02:47.8]} 3. Bg2 {[%clk 0:03:01]} 3... Bg7 {[%clk 0:02:45]} 4.
Nf3 {[%clk 0:03:01.6]} 4... O-O {[%clk 0:02:44.9]} 5. O-O {[%clk 0:03:02.1]}
5... d5 {[%clk 0:02:45.6]} 6. cxd5 {[%clk 0:03:01.8]} 6... Nxd5 {[%clk
0:02:46.5]} 7. d4 {[%clk 0:03:00.1]} 7... Nc6 {[%clk 0:02:45.3]} 8. e4 {[%clk
0:02:51.8]} 8... Nb6 {[%clk 0:02:44.2]} 9. d5 {[%clk 0:02:49.1]} 9... Na5 {[%clk
0:02:44.7]} 10. Qe2 {[%clk 0:02:41.5]} 10... c6 {[%clk 0:02:35.1]} 11. dxc6
{[%clk 0:02:41.9]} 11... Nxc6 {[%clk 0:02:34.4]} 12. Nc3 {[%clk 0:02:42]} 12...
Bg4 {[%clk 0:02:33.9]} 13. Be3 {[%clk 0:02:41.2]} 13... Ne5 {[%clk 0:02:22.6]}
14. Rfd1 {[%clk 0:02:39]} 14... Qe8 {[%clk 0:02:11.2]} 15. Bxb6 {[%clk
0:02:10.7]} 15... axb6 {[%clk 0:02:09.1]} 16. Nd5 {[%clk 0:02:11.2]} 16... Rd8
{[%clk 0:01:47.4]} 17. Ne3 {[%clk 0:02:07.6]} 17... Nxf3+ {[%clk 0:01:46]} 18.
Bxf3 {[%clk 0:02:07.6]} 18... Bxf3 {[%clk 0:01:46.9]} 19. Qxf3 {[%clk
0:02:07.8]} 19... Bxb2 {[%clk 0:01:41]} 20. Rab1 {[%clk 0:02:08]} 20... Bg7
{[%clk 0:01:37.3]} 21. Rxb6 {[%clk 0:01:53.9]} 21... Qa4 {[%clk 0:00:45.5]} 22.
Rxd8 {[%clk 0:01:40.9]} 22... Rxd8 {[%clk 0:00:45.1]} 23. Rxb7 {[%clk
0:01:41.4]} 23... Bf6 {[%clk 0:00:14.1]} 24. e5 {[%clk 0:01:23.2]} 24... Bxe5
{[%clk 0:00:05.7]} 25. Rxe7 {[%clk 0:01:23.8]} 25... f6 {[%clk 0:00:03]} 26. Qb7
{[%clk 0:01:20.9]} 26... Qxa2 {[%clk 0:00:01.1]} 27. Rg7+ {[%clk 0:01:19.3]}
27... Kf8 {[%clk 0:00:01.5]} 28. Qe7# {[%clk 0:01:18.9]} 1-0

[Event "Early-Titled-Tuesday-Blitz-February-27-2024"]
[Site "Chess.com"]
[Date "2024.02.27"]
[Round "11"]
[White "GreenPeach24"]
[Black "PabloZarnicki"]
[Result "0-1"]
[WhiteElo "2476"]
[BlackElo "2626"]
[TimeControl "180+1"]
[EndTime "10:04:32 PST"]
[Termination "PabloZarnicki won on time"]

1. d4 {[%clk 0:02:58.2]} 1... Nf6 {[%clk 0:02:43.9]} 2. Nf3 {[%clk 0:02:56.7]}
2... g6 {[%clk 0:02:43.4]} 3. Bf4 {[%clk 0:02:55.2]} 3... Bg7 {[%clk 0:02:43.9]}
4. Nc3 {[%clk 0:02:54.8]} 4... O-O {[%clk 0:02:44.8]} 5. e4 {[%clk 0:02:54.7]}
5... d5 {[%clk 0:02:45.7]} 6. exd5 {[%clk 0:02:48.9]} 6... Nxd5 {[%clk
0:02:36.8]} 7. Nxd5 {[%clk 0:02:47.8]} 7... Qxd5 {[%clk 0:02:37.7]} 8. c4 {[%clk
0:02:47.5]} 8... Qe4+ {[%clk 0:02:36.5]} 9. Be3 {[%clk 0:02:46.4]} 9... Nc6
{[%clk 0:02:36.4]} 10. Bd3 {[%clk 0:02:31.8]} 10... Qg4 {[%clk 0:02:36.2]} 11.
O-O {[%clk 0:02:30.4]} 11... Bf5 {[%clk 0:02:32.2]} 12. Be2 {[%clk 0:02:26.1]}
12... Qe4 {[%clk 0:02:23.4]} 13. d5 {[%clk 0:02:20.5]} 13... Ne5 {[%clk
0:02:21.8]} 14. Ng5 {[%clk 0:02:07]} 14... Qc2 {[%clk 0:02:10.2]} 15. Qxc2
{[%clk 0:02:04.4]} 15... Bxc2 {[%clk 0:02:09.7]} 16. Rac1 {[%clk 0:01:56.4]}
16... Bd3 {[%clk 0:02:05.8]} 17. Rfe1 {[%clk 0:01:54.6]} 17... Bxe2 {[%clk
0:02:04.6]} 18. Rxe2 {[%clk 0:01:53.8]} 18... Nd3 {[%clk 0:02:00.7]} 19. Rb1
{[%clk 0:01:48.8]} 19... a6 {[%clk 0:01:55.5]} 20. b3 {[%clk 0:01:46.6]} 20...
b5 {[%clk 0:01:55]} 21. Rd2 {[%clk 0:01:09.7]} 21... bxc4 {[%clk 0:01:52.8]} 22.
bxc4 {[%clk 0:01:09.3]} 22... Rab8 {[%clk 0:01:47.4]} 23. Rb3 {[%clk 0:00:50.1]}
23... Ne5 {[%clk 0:01:38.3]} 24. Rc2 {[%clk 0:00:38.4]} 24... Rxb3 {[%clk
0:01:38.2]} 25. axb3 {[%clk 0:00:38.2]} 25... Rb8 {[%clk 0:01:39.1]} 26. h3
{[%clk 0:00:28.6]} 26... Rxb3 {[%clk 0:01:36.1]} 27. c5 {[%clk 0:00:28]} 27...
a5 {[%clk 0:01:29.9]} 28. Ne4 {[%clk 0:00:22.3]} 28... a4 {[%clk 0:01:27.7]} 29.
d6 {[%clk 0:00:22.1]} 29... exd6 {[%clk 0:01:27.2]} 30. cxd6 {[%clk 0:00:22.3]}
30... cxd6 {[%clk 0:01:23.6]} 0-1

[Event "Early-Titled-Tuesday-Blitz-February-27-2024"]
[Site "Chess.com"]
[Date "2024.02.27"]
[Round "11"]
[White "MasterKroket"]
[Black "Bastiandash"]
[Result "1/2-1/2"]
[WhiteElo "2481"]
[BlackElo "2588"]
[TimeControl "180+1"]
[EndTime "10:04:35 PST"]
[Termination "Game drawn by repetition"]

1. e4 {[%clk 0:03:00.9]} 1... c6 {[%clk 0:02:56.1]} 2. d4 {[%clk 0:03:00.5]}
2... d5 {[%clk 0:02:43.7]} 3. e5 {[%clk 0:03:00.2]} 3... Bf5 {[%clk 0:02:43.3]}
4. Nf3 {[%clk 0:02:57.6]} 4... e6 {[%clk 0:02:43]} 5. Be2 {[%clk 0:02:57.1]}
5... h6 {[%clk 0:02:42]} 6. Nbd2 {[%clk 0:02:57.2]} 6... Nd7 {[%clk 0:02:42.9]}
7. Nb3 {[%clk 0:02:57.3]} 7... Ne7 {[%clk 0:02:42.7]} 8. a4 {[%clk 0:02:57.8]}
8... g5 {[%clk 0:02:43.6]} 9. h3 {[%clk 0:02:55]} 9... Bg7 {[%clk 0:02:43.7]}
10. a5 {[%clk 0:02:54.7]} 10... O-O {[%clk 0:02:44]} 11. Be3 {[%clk 0:02:54.3]}
11... Rc8 {[%clk 0:02:42.6]} 12. Qd2 {[%clk 0:02:45.5]} 12... c5 {[%clk
0:02:41.5]} 13. dxc5 {[%clk 0:02:45.4]} 13... Nxe5 {[%clk 0:02:39.8]} 14. Nfd4
{[%clk 0:02:43.2]} 14... Bg6 {[%clk 0:02:37.3]} 15. Ra4 {[%clk 0:02:37.8]} 15...
N5c6 {[%clk 0:02:26.1]} 16. h4 {[%clk 0:02:32.5]} 16... Nxd4 {[%clk 0:02:17.5]}
17. Bxd4 {[%clk 0:02:24.9]} 17... e5 {[%clk 0:02:16.5]} 18. Bc3 {[%clk
0:02:25.2]} 18... d4 {[%clk 0:02:13.3]} 19. Bb4 {[%clk 0:02:25.6]} 19... Qd7
{[%clk 0:02:08.5]} 20. Ra3 {[%clk 0:02:21.2]} 20... g4 {[%clk 0:02:08.8]} 21. h5
{[%clk 0:02:12.3]} 21... Bh7 {[%clk 0:02:08.4]} 22. Bd3 {[%clk 0:02:06.3]} 22...
e4 {[%clk 0:02:05.1]} 23. Bc4 {[%clk 0:02:05.8]} 23... Kh8 {[%clk 0:01:57.6]}
24. c6 {[%clk 0:01:59.8]} 24... Nxc6 {[%clk 0:01:36]} 25. Bxf8 {[%clk
0:01:59.5]} 25... Bxf8 {[%clk 0:01:36.1]} 26. Ra1 {[%clk 0:01:56.5]} 26... g3
{[%clk 0:01:23.3]} 27. Qf4 {[%clk 0:01:50.6]} 27... Bd6 {[%clk 0:01:14.5]} 28.
Qf6+ {[%clk 0:01:47.2]} 28... Kg8 {[%clk 0:01:11.7]} 29. O-O {[%clk 0:01:36.1]}
29... Be5 {[%clk 0:01:06.4]} 30. Qxh6 {[%clk 0:01:36.1]} 30... Kh8 {[%clk
0:00:42.7]} 31. fxg3 {[%clk 0:01:32.1]} 31... Nd8 {[%clk 0:00:39.2]} 32. Qf8+
{[%clk 0:01:06.8]} 32... Bg8 {[%clk 0:00:39.2]} 33. Qh6+ {[%clk 0:00:49.2]}
33... Bh7 {[%clk 0:00:39.1]} 34. Qf8+ {[%clk 0:00:50.1]} 34... Bg8 {[%clk
0:00:39.4]} 35. Qh6+ {[%clk 0:00:51]} 35... Bh7 {[%clk 0:00:39.7]} 1/2-1/2

[Event "Early-Titled-Tuesday-Blitz-February-27-2024"]
[Site "Chess.com"]
[Date "2024.02.27"]
[Round "11"]
[White "Muslim_player_05"]
[Black "bescmelasti"]
[Result "1-0"]
[WhiteElo "2496"]
[BlackElo "2633"]
[TimeControl "180+1"]
[EndTime "10:04:43 PST"]
[Termination "Muslim_player_05 won by resignation"]

1. d4 {[%clk 0:02:56.6]} 1... Nf6 {[%clk 0:02:59.3]} 2. c4 {[%clk 0:02:56]} 2...
e6 {[%clk 0:02:59.6]} 3. Nc3 {[%clk 0:02:55.8]} 3... Bb4 {[%clk 0:02:59.8]} 4.
e3 {[%clk 0:02:56.3]} 4... O-O {[%clk 0:02:59.5]} 5. Bd3 {[%clk 0:02:56.3]} 5...
d5 {[%clk 0:02:59.2]} 6. Nf3 {[%clk 0:02:55]} 6... c5 {[%clk 0:02:58.6]} 7. O-O
{[%clk 0:02:54.9]} 7... dxc4 {[%clk 0:02:52.8]} 8. Bxc4 {[%clk 0:02:55.8]} 8...
Nc6 {[%clk 0:02:53.4]} 9. a3 {[%clk 0:02:54.5]} 9... Ba5 {[%clk 0:02:53.9]} 10.
Qd3 {[%clk 0:02:36.3]} 10... a6 {[%clk 0:02:52.5]} 11. Rd1 {[%clk 0:02:35.7]}
11... b5 {[%clk 0:02:50.4]} 12. Ba2 {[%clk 0:02:36.2]} 12... c4 {[%clk
0:02:46.2]} 13. Qe2 {[%clk 0:02:36.2]} 13... Bb7 {[%clk 0:02:44.6]} 14. e4
{[%clk 0:02:34.8]} 14... Ne7 {[%clk 0:02:40.9]} 15. Bb1 {[%clk 0:02:15.4]} 15...
Ng6 {[%clk 0:02:40.6]} 16. Bc2 {[%clk 0:02:05.8]} 16... Rc8 {[%clk 0:02:30]} 17.
h4 {[%clk 0:01:58.2]} 17... Re8 {[%clk 0:02:25.5]} 18. Ne5 {[%clk 0:01:47.9]}
18... Nxh4 {[%clk 0:02:22]} 19. Bg5 {[%clk 0:01:46.9]} 19... Ng6 {[%clk
0:02:17.4]} 20. Nxg6 {[%clk 0:01:47]} 20... hxg6 {[%clk 0:01:59.3]} 21. e5
{[%clk 0:01:37.1]} 21... Bxc3 {[%clk 0:01:59.7]} 22. bxc3 {[%clk 0:01:31.8]}
22... Qd5 {[%clk 0:01:59.9]} 23. f3 {[%clk 0:01:30.7]} 23... Nh7 {[%clk
0:01:48]} 24. Be3 {[%clk 0:01:21.9]} 24... Nf8 {[%clk 0:01:38.7]} 25. Kf2 {[%clk
0:01:11.6]} 25... f6 {[%clk 0:01:38.7]} 26. Rh1 {[%clk 0:00:49.2]} 26... Kf7
{[%clk 0:01:26.1]} 27. Rh8 {[%clk 0:00:46]} 27... Nd7 {[%clk 0:01:19]} 28. Rxe8
{[%clk 0:00:31.5]} 28... Rxe8 {[%clk 0:01:18.8]} 29. Be4 {[%clk 0:00:31.8]}
29... Qxe4 {[%clk 0:01:19.2]} 30. fxe4 {[%clk 0:00:32.7]} 30... Bxe4 {[%clk
0:01:20.1]} 31. a4 {[%clk 0:00:22.6]} 31... Rh8 {[%clk 0:01:11.1]} 32. axb5
{[%clk 0:00:19.8]} 32... Rh2 {[%clk 0:01:07]} 33. Kg1 {[%clk 0:00:19.2]} 1-0

[Event "Early-Titled-Tuesday-Blitz-February-27-2024"]
[Site "Chess.com"]
[Date "2024.02.27"]
[Round "11"]
[White "ljuks68"]
[Black "Rogarcia1"]
[Result "0-1"]
[WhiteElo "2411"]
[BlackElo "2510"]
[TimeControl "180+1"]
[EndTime "10:04:44 PST"]
[Termination "Rogarcia1 won on time"]

1. e4 {[%clk 0:03:00.9]} 1... c5 {[%clk 0:02:56.4]} 2. Nf3 {[%clk 0:03:01.1]}
2... d6 {[%clk 0:02:55.9]} 3. d4 {[%clk 0:03:01.7]} 3... cxd4 {[%clk 0:02:55.1]}
4. Nxd4 {[%clk 0:03:02.3]} 4... Nf6 {[%clk 0:02:54.9]} 5. Nc3 {[%clk 0:03:02.9]}
5... a6 {[%clk 0:02:53.9]} 6. Bg5 {[%clk 0:03:03.4]} 6... Nbd7 {[%clk
0:02:53.5]} 7. f4 {[%clk 0:03:03.7]} 7... Qc7 {[%clk 0:02:52.9]} 8. Qf3 {[%clk
0:03:02.1]} 8... h6 {[%clk 0:02:52.7]} 9. Bxf6 {[%clk 0:03:02.5]} 9... Nxf6
{[%clk 0:02:52.3]} 10. f5 {[%clk 0:03:03]} 10... Nd7 {[%clk 0:02:37.3]} 11. Nd5
{[%clk 0:02:42]} 11... Qc5 {[%clk 0:02:08.3]} 12. Qf2 {[%clk 0:01:45.1]} 12...
b5 {[%clk 0:01:54.6]} 13. b4 {[%clk 0:01:22.2]} 13... Qa7 {[%clk 0:01:54.4]} 14.
a4 {[%clk 0:01:14.7]} 14... bxa4 {[%clk 0:01:46.3]} 15. Rxa4 {[%clk 0:01:14]}
15... Ne5 {[%clk 0:01:46.1]} 16. b5 {[%clk 0:01:11.1]} 16... e6 {[%clk
0:01:41.9]} 17. b6 {[%clk 0:01:10.1]} 17... Qb7 {[%clk 0:01:39.4]} 18. Nc7+
{[%clk 0:01:10.2]} 18... Kd8 {[%clk 0:01:37.2]} 19. Nxa8 {[%clk 0:01:09.2]}
19... Qxa8 {[%clk 0:01:37.6]} 20. fxe6 {[%clk 0:01:03.3]} 20... fxe6 {[%clk
0:01:34.7]} 21. Bd3 {[%clk 0:00:57.4]} 21... Be7 {[%clk 0:01:34.2]} 22. O-O
{[%clk 0:00:55.9]} 22... Rf8 {[%clk 0:01:25]} 23. Qe2 {[%clk 0:00:44.4]} 23...
Rxf1+ {[%clk 0:01:21.7]} 24. Qxf1 {[%clk 0:00:44.3]} 24... Qb8 {[%clk
0:01:21.5]} 25. Qb1 {[%clk 0:00:33.4]} 25... Ke8 {[%clk 0:01:05.8]} 26. Bxa6
{[%clk 0:00:28.3]} 26... Bxa6 {[%clk 0:01:06]} 27. Rxa6 {[%clk 0:00:28.4]} 27...
Qb7 {[%clk 0:01:06.7]} 28. Ra7 {[%clk 0:00:18.7]} 28... Qxe4 {[%clk 0:01:06.3]}
0-1

[Event "Early-Titled-Tuesday-Blitz-February-27-2024"]
[Site "Chess.com"]
[Date "2024.02.27"]
[Round "11"]
[White "DefiantChair"]
[Black "Mops_2004"]
[Result "1-0"]
[WhiteElo "2648"]
[BlackElo "2825"]
[TimeControl "180+1"]
[EndTime "10:04:48 PST"]
[Termination "DefiantChair won on time"]

1. e4 {[%clk 0:03:00.9]} 1... g6 {[%clk 0:02:59.8]} 2. d4 {[%clk 0:03:00.5]}
2... Bg7 {[%clk 0:03:00.1]} 3. Nc3 {[%clk 0:03:01.3]} 3... d6 {[%clk 0:03:00.3]}
4. f4 {[%clk 0:03:01.3]} 4... a6 {[%clk 0:02:54.4]} 5. Nf3 {[%clk 0:02:59.9]}
5... b5 {[%clk 0:02:54.6]} 6. Bd3 {[%clk 0:02:58.8]} 6... Nd7 {[%clk 0:02:54.4]}
7. e5 {[%clk 0:02:49.8]} 7... c5 {[%clk 0:02:51]} 8. Be4 {[%clk 0:02:43.2]} 8...
Rb8 {[%clk 0:02:38.5]} 9. Be3 {[%clk 0:02:43]} 9... Nh6 {[%clk 0:02:21.7]} 10.
dxc5 {[%clk 0:02:32.7]} 10... dxe5 {[%clk 0:02:03.3]} 11. c6 {[%clk 0:02:32.8]}
11... Nf6 {[%clk 0:02:03.4]} 12. Qxd8+ {[%clk 0:02:21.8]} 12... Kxd8 {[%clk
0:02:03.6]} 13. O-O-O+ {[%clk 0:02:20.1]} 13... Kc7 {[%clk 0:02:00.9]} 14. Nd5+
{[%clk 0:02:19.6]} 14... Nxd5 {[%clk 0:02:00.7]} 15. Bxd5 {[%clk 0:02:20.5]}
15... Nf5 {[%clk 0:01:17]} 16. Bc5 {[%clk 0:02:17.3]} 16... exf4 {[%clk
0:01:13.5]} 17. Rhe1 {[%clk 0:02:03.4]} 17... Bf6 {[%clk 0:01:00.3]} 18. Be4
{[%clk 0:01:52]} 18... Nd6 {[%clk 0:00:54.1]} 19. Bxd6+ {[%clk 0:01:42.6]} 19...
exd6 {[%clk 0:00:53.9]} 20. Bd5 {[%clk 0:01:42.9]} 20... g5 {[%clk 0:00:34.4]}
21. Bxf7 {[%clk 0:01:41]} 21... Kxc6 {[%clk 0:00:31]} 22. Bd5+ {[%clk
0:01:38.3]} 22... Kc7 {[%clk 0:00:29.1]} 23. Nd4 {[%clk 0:01:37.5]} 23... Bd7
{[%clk 0:00:25.3]} 24. Ne6+ {[%clk 0:01:37]} 24... Bxe6 {[%clk 0:00:17.2]} 25.
Rxe6 {[%clk 0:01:36.5]} 25... Be5 {[%clk 0:00:15]} 26. Re7+ {[%clk 0:01:35.4]}
26... Kb6 {[%clk 0:00:15.1]} 27. h3 {[%clk 0:01:34.1]} 27... h6 {[%clk
0:00:13.1]} 28. Bf3 {[%clk 0:01:33.1]} 28... Rhe8 {[%clk 0:00:10.8]} 29. Rh7
{[%clk 0:01:32.1]} 29... Rh8 {[%clk 0:00:10.6]} 30. Rd7 {[%clk 0:01:31.8]} 30...
Rhd8 {[%clk 0:00:08.1]} 31. Rh7 {[%clk 0:01:31.6]} 31... Rh8 {[%clk 0:00:06.4]}
32. Rf7 {[%clk 0:01:31.5]} 32... h5 {[%clk 0:00:04.2]} 33. c3 {[%clk 0:01:30.8]}
33... Rbg8 {[%clk 0:00:03]} 34. Rb7+ {[%clk 0:01:30.3]} 34... Ka5 {[%clk
0:00:02.8]} 35. b4+ {[%clk 0:01:29.2]} 35... Ka4 {[%clk 0:00:03]} 36. Ra7 {[%clk
0:01:29]} 1-0

[Event "Early-Titled-Tuesday-Blitz-February-27-2024"]
[Site "Chess.com"]
[Date "2024.02.27"]
[Round "11"]
[White "manitodeplomo"]
[Black "SARGISMV"]
[Result "1-0"]
[WhiteElo "2663"]
[BlackElo "2501"]
[TimeControl "180+1"]
[EndTime "10:04:50 PST"]
[Termination "manitodeplomo won on time"]

1. d4 {[%clk 0:03:00.9]} 1... Nf6 {[%clk 0:02:56.9]} 2. c4 {[%clk 0:03:00.5]}
2... c5 {[%clk 0:02:56.6]} 3. d5 {[%clk 0:03:00.4]} 3... e6 {[%clk 0:02:57.3]}
4. Nc3 {[%clk 0:02:59.9]} 4... exd5 {[%clk 0:02:57.2]} 5. cxd5 {[%clk
0:03:00.8]} 5... Bd6 {[%clk 0:02:57.6]} 6. Nf3 {[%clk 0:03:00.2]} 6... O-O
{[%clk 0:02:57.9]} 7. Bg5 {[%clk 0:03:00.5]} 7... Re8 {[%clk 0:02:57.5]} 8. e3
{[%clk 0:02:59.6]} 8... h6 {[%clk 0:02:56]} 9. Bh4 {[%clk 0:02:59]} 9... Bf8
{[%clk 0:02:56.1]} 10. Be2 {[%clk 0:02:57.5]} 10... d6 {[%clk 0:02:56.7]} 11.
O-O {[%clk 0:02:57.3]} 11... Nbd7 {[%clk 0:02:56.9]} 12. Nd2 {[%clk 0:02:51.7]}
12... a6 {[%clk 0:02:55.7]} 13. a4 {[%clk 0:02:51.1]} 13... Rb8 {[%clk
0:02:55.8]} 14. Re1 {[%clk 0:02:45.4]} 14... Ne5 {[%clk 0:02:37.5]} 15. e4
{[%clk 0:02:41.8]} 15... g5 {[%clk 0:02:29.5]} 16. Bg3 {[%clk 0:02:41.1]} 16...
Ng6 {[%clk 0:02:23.2]} 17. Rb1 {[%clk 0:02:32.4]} 17... Nd7 {[%clk 0:02:04.3]}
18. Bg4 {[%clk 0:02:24]} 18... Nde5 {[%clk 0:02:02.9]} 19. Bxc8 {[%clk
0:02:23.5]} 19... Qxc8 {[%clk 0:01:50.2]} 20. Nf1 {[%clk 0:02:08]} 20... b5
{[%clk 0:01:41.4]} 21. axb5 {[%clk 0:02:07.5]} 21... axb5 {[%clk 0:01:42.3]} 22.
Ne3 {[%clk 0:02:07.2]} 22... c4 {[%clk 0:01:30]} 23. Nf5 {[%clk 0:02:03.5]}
23... b4 {[%clk 0:01:16.2]} 24. Na4 {[%clk 0:01:46.9]} 24... Qa6 {[%clk
0:01:01.3]} 25. Re3 {[%clk 0:01:35]} 25... Ra8 {[%clk 0:00:45.4]} 26. b3 {[%clk
0:01:31.1]} 26... c3 {[%clk 0:00:42.2]} 27. h4 {[%clk 0:01:19.2]} 27... Rac8
{[%clk 0:00:20.7]} 28. Rc1 {[%clk 0:01:17.7]} 28... gxh4 {[%clk 0:00:10.4]} 29.
Bxh4 {[%clk 0:01:18.6]} 29... c2 {[%clk 0:00:05]} 30. Rxc2 {[%clk 0:01:16.9]}
30... Rxc2 {[%clk 0:00:05.4]} 31. Qxc2 {[%clk 0:01:17.8]} 31... Rc8 {[%clk
0:00:05.9]} 32. Qd1 {[%clk 0:01:16.3]} 32... Qa7 {[%clk 0:00:03.5]} 33. Bf6
{[%clk 0:01:10.1]} 1-0

[Event "Early-Titled-Tuesday-Blitz-February-27-2024"]
[Site "Chess.com"]
[Date "2024.02.27"]
[Round "11"]
[White "Kostukov_Alex"]
[Black "BozeKat"]
[Result "1-0"]
[WhiteElo "2351"]
[BlackElo "2147"]
[TimeControl "180+1"]
[EndTime "10:04:57 PST"]
[Termination "Kostukov_Alex won by resignation"]

1. g3 {[%clk 0:02:56.8]} 1... g6 {[%clk 0:02:57.3]} 2. Bg2 {[%clk 0:02:52.9]}
2... Bg7 {[%clk 0:02:57.8]} 3. c4 {[%clk 0:02:53.1]} 3... c5 {[%clk 0:02:57.7]}
4. Nc3 {[%clk 0:02:53.5]} 4... Nc6 {[%clk 0:02:57.7]} 5. Nf3 {[%clk 0:02:54.1]}
5... e5 {[%clk 0:02:57.6]} 6. O-O {[%clk 0:02:53.3]} 6... Nge7 {[%clk
0:02:58.2]} 7. d3 {[%clk 0:02:53.8]} 7... O-O {[%clk 0:02:58.7]} 8. Bd2 {[%clk
0:02:53.2]} 8... d6 {[%clk 0:02:59.4]} 9. Ne1 {[%clk 0:02:53.3]} 9... f5 {[%clk
0:02:57.9]} 10. Nc2 {[%clk 0:02:52.7]} 10... f4 {[%clk 0:02:53.3]} 11. e3 {[%clk
0:02:52.3]} 11... g5 {[%clk 0:02:42.6]} 12. Nd5 {[%clk 0:02:49.3]} 12... Be6
{[%clk 0:02:36.5]} 13. exf4 {[%clk 0:02:19]} 13... exf4 {[%clk 0:02:30.5]} 14.
gxf4 {[%clk 0:01:58.3]} 14... Bxd5 {[%clk 0:02:17.7]} 15. cxd5 {[%clk
0:01:57.9]} 15... Nd4 {[%clk 0:02:12.1]} 16. Nxd4 {[%clk 0:01:51.1]} 16... Bxd4
{[%clk 0:02:11.1]} 17. fxg5 {[%clk 0:01:51.2]} 17... Ng6 {[%clk 0:01:56.4]} 18.
Be4 {[%clk 0:01:39.3]} 18... Nf4 {[%clk 0:01:52.1]} 19. Qg4 {[%clk 0:01:30.4]}
19... Ng6 {[%clk 0:01:42.5]} 20. Kg2 {[%clk 0:01:13.9]} 20... Be5 {[%clk
0:01:35.8]} 21. f4 {[%clk 0:01:09.7]} 21... Bg7 {[%clk 0:01:12.6]} 22. Qe6+
{[%clk 0:00:49.3]} 22... Kh8 {[%clk 0:01:11.7]} 23. Bxg6 {[%clk 0:00:48.5]}
23... hxg6 {[%clk 0:01:08.9]} 24. Qxg6 {[%clk 0:00:48.2]} 24... Qe7 {[%clk
0:00:59.5]} 25. Rae1 {[%clk 0:00:46.1]} 25... Qd7 {[%clk 0:00:54]} 26. Rf3
{[%clk 0:00:42.4]} 26... Rae8 {[%clk 0:00:42.8]} 27. Rh3+ {[%clk 0:00:37.5]}
27... Kg8 {[%clk 0:00:35]} 28. Re6 {[%clk 0:00:35.5]} 28... Rxe6 {[%clk
0:00:26.4]} 29. dxe6 {[%clk 0:00:33.4]} 29... Qc6+ {[%clk 0:00:26.6]} 30. Kg3
{[%clk 0:00:32.8]} 1-0

[Event "Early-Titled-Tuesday-Blitz-February-27-2024"]
[Site "Chess.com"]
[Date "2024.02.27"]
[Round "11"]
[White "WiktoriaPOL"]
[Black "Cheer_Down"]
[Result "1-0"]
[WhiteElo "2278"]
[BlackElo "2455"]
[TimeControl "180+1"]
[EndTime "10:04:59 PST"]
[Termination "WiktoriaPOL won by resignation"]

1. c4 {[%clk 0:02:57.8]} 1... e6 {[%clk 0:02:58.6]} 2. Nc3 {[%clk 0:02:57.6]}
2... d5 {[%clk 0:02:59.2]} 3. d4 {[%clk 0:02:57.2]} 3... c5 {[%clk 0:02:56.3]}
4. cxd5 {[%clk 0:02:56.9]} 4... cxd4 {[%clk 0:02:56.3]} 5. Qxd4 {[%clk
0:02:56.5]} 5... Nc6 {[%clk 0:02:52.2]} 6. Qd2 {[%clk 0:02:49.6]} 6... exd5
{[%clk 0:02:51.6]} 7. Qxd5 {[%clk 0:02:48.6]} 7... Bd6 {[%clk 0:02:49.7]} 8. Nf3
{[%clk 0:02:17.5]} 8... Nf6 {[%clk 0:02:40]} 9. Qd1 {[%clk 0:02:12.4]} 9... Qe7
{[%clk 0:02:38.5]} 10. Bg5 {[%clk 0:02:07.4]} 10... Be6 {[%clk 0:02:38.6]} 11.
Bxf6 {[%clk 0:02:01.2]} 11... gxf6 {[%clk 0:02:37.6]} 12. e3 {[%clk 0:01:53.4]}
12... O-O-O {[%clk 0:02:37.6]} 13. Qa4 {[%clk 0:01:46]} 13... Bb4 {[%clk
0:02:32.1]} 14. Bb5 {[%clk 0:01:36.4]} 14... Qc5 {[%clk 0:02:26.9]} 15. O-O
{[%clk 0:01:25]} 15... Bxc3 {[%clk 0:02:27.1]} 16. bxc3 {[%clk 0:01:24.1]} 16...
Ne5 {[%clk 0:02:23.3]} 17. Nd4 {[%clk 0:01:17]} 17... Bc4 {[%clk 0:02:18.5]} 18.
Bxc4 {[%clk 0:01:16.1]} 18... Nxc4 {[%clk 0:02:18.7]} 19. Qb4 {[%clk 0:01:01.9]}
19... Rd5 {[%clk 0:02:13.3]} 20. Rab1 {[%clk 0:00:52.9]} 20... b6 {[%clk
0:02:11.7]} 21. Qxc5+ {[%clk 0:00:49.1]} 21... Rxc5 {[%clk 0:02:11.9]} 22. Rb5
{[%clk 0:00:47.3]} 22... Rd8 {[%clk 0:02:09.1]} 23. Rxc5+ {[%clk 0:00:44]} 23...
bxc5 {[%clk 0:02:09.3]} 24. Nb3 {[%clk 0:00:43.2]} 24... Rd5 {[%clk 0:02:06.3]}
25. e4 {[%clk 0:00:41.3]} 25... Re5 {[%clk 0:02:05.6]} 26. f3 {[%clk 0:00:40.9]}
26... f5 {[%clk 0:02:00.3]} 27. Re1 {[%clk 0:00:40.2]} 27... f4 {[%clk
0:01:59.2]} 28. g3 {[%clk 0:00:36.5]} 28... fxg3 {[%clk 0:01:59.2]} 29. hxg3
{[%clk 0:00:37.4]} 29... f5 {[%clk 0:01:58.5]} 30. Kf2 {[%clk 0:00:34.8]} 30...
fxe4 {[%clk 0:01:55.7]} 31. Rxe4 {[%clk 0:00:34.9]} 31... Rxe4 {[%clk
0:01:55.8]} 32. fxe4 {[%clk 0:00:35.2]} 32... Ne5 {[%clk 0:01:15.6]} 33. Nxc5
{[%clk 0:00:30.4]} 33... Kc7 {[%clk 0:01:16.1]} 34. Ke3 {[%clk 0:00:28.1]} 34...
Kc6 {[%clk 0:01:16.4]} 35. Nd3 {[%clk 0:00:24.8]} 35... Ng4+ {[%clk 0:01:14.9]}
36. Kd4 {[%clk 0:00:24.1]} 36... Kd6 {[%clk 0:01:15.2]} 37. c4 {[%clk
0:00:23.2]} 37... h5 {[%clk 0:01:14]} 38. c5+ {[%clk 0:00:23.1]} 38... Kc6
{[%clk 0:01:14.3]} 39. Ne5+ {[%clk 0:00:23]} 39... Nxe5 {[%clk 0:01:13.5]} 40.
Kxe5 {[%clk 0:00:23.9]} 40... Kxc5 {[%clk 0:01:14]} 41. Kf6 {[%clk 0:00:24.5]}
41... Kb4 {[%clk 0:01:13.5]} 42. e5 {[%clk 0:00:24.9]} 42... Ka3 {[%clk
0:01:14.4]} 43. e6 {[%clk 0:00:25.5]} 43... a5 {[%clk 0:01:15.3]} 44. e7 {[%clk
0:00:25.9]} 44... a4 {[%clk 0:01:16.2]} 45. e8=Q {[%clk 0:00:26.2]} 45... Kxa2
{[%clk 0:01:17.1]} 46. Qxa4+ {[%clk 0:00:26.2]} 1-0